bitfinex-derivatives/quotes_SOLF0:USTF0_20250907
["timestamp","ask_amount","ask_price","bid_price","bid_amount"]
[1757242590828,7.68,203.39,203.37,4.48012085]
[1757242591029,7.68,203.39,203.36,7.41]
[1757242591326,7.68,203.39,203.37,4.47929811]
[1757242591527,7.68,203.39,203.36,7.41]
[1757242591727,7.68,203.39,203.37,4.4798992]
[1757242591926,7.68,203.39,203.36,7.41]
[1757242592128,7.68,203.39,203.37,4.4798992]
[1757242592329,7.68,203.39,203.36,7.41]
[1757242592529,7.68,203.39,203.37,4.48049095]
[1757242592828,7.68,203.39,203.36,7.41]
[1757242593028,7.68,203.39,203.37,4.48049095]
[1757242593229,7.68,203.39,203.36,7.41]
[1757242593430,7.68,203.39,203.37,4.48117306]
[1757242593632,7.68,203.39,203.36,7.41]
[1757242593828,7.68,203.39,203.37,4.48117306]
[1757242594131,7.68,203.39,203.36,7.41]
[1757242594330,13.20446637,203.39,203.37,4.48189224]
[1757242594630,13.20446637,203.39,203.36,7.41]
[1757242594830,13.20446637,203.39,203.37,4.48196237]
[1757242595131,13.20446637,203.39,203.36,7.41]
[1757242595334,13.20446637,203.39,203.37,4.48280412]
[1757242595534,13.20446637,203.39,203.36,7.41]
[1757242595735,13.20446637,203.39,203.37,4.48348564]
[1757242595934,13.20446637,203.39,203.36,7.41]
[1757242596232,13.20446637,203.39,203.37,11.88848419]
[1757242596428,13.20446637,203.39,203.37,7.41]
[1757242596734,13.20446637,203.39,203.36,7.41]
[1757242596930,13.20446637,203.39,203.37,4.4790301]
[1757242597133,13.20446637,203.39,203.37,7.41]
[1757242597334,13.20446637,203.39,203.38,11.88941379]
[1757242597635,5.52446637,203.39,203.38,11.88941379]
[1757242597938,5.52446637,203.4,203.38,4.47941379]
[1757242598236,5.52446637,203.4,203.39,7.41]
[1757242602237,7.68,203.41,203.39,7.41]
[1757242607737,15.98004869,203.41,203.39,7.41]
[1757242608436,15.98004869,203.41,203.4,4.48678245]
[1757242610039,15.98004869,203.41,203.4,4.48728331]
[1757242614341,7.68,203.41,203.4,4.48728331]
[1757242638178,7.68,203.41,203.4,4.49153805]
[1757242639978,7.68,203.41,203.34,7.7]
[1757242640180,5.53084143,203.36,203.35,4.49210984]
[1757242640375,5.53084143,203.36,203.35,12.19210984]
[1757242647685,5.53084143,203.37,203.35,12.19210984]
[1757242647985,5.53084143,203.37,203.36,12.19210984]
[1757242649286,5.53084143,203.37,203.36,12.18899335]
[1757242652191,5.53084143,203.38,203.37,7.7]
[1757242652494,5.53084143,203.38,203.37,12.18899335]
[1757242653592,5.53084143,203.39,203.38,7.7]
[1757242653790,5.53084143,203.39,203.38,12.18899335]
[1757242657697,15.97626215,203.41,203.38,12.18899335]
[1757242657897,7.97,203.4,203.39,4.48899335]
[1757242660798,8.29626215,203.41,203.4,7.7]
[1757242661096,16.26626215,203.41,203.4,4.48899335]
[1757242661801,16.26626215,203.41,203.37,7.7]
[1757242661802,7.97,203.41,203.34,7.7]
[1757242662004,5.52751566,203.37,203.36,7.7]
[1757242662302,5.52751566,203.37,203.36,12.18862886]
[1757242667712,5.52751566,203.38,203.36,12.18862886]
[1757242667909,5.52751566,203.38,203.37,4.48862886]
[1757242668607,5.52751566,203.38,203.37,12.18862886]
[1757242675121,16.3012735,203.4,203.38,8.13]
[1757242675320,16.3012735,203.4,203.39,4.48862886]
[1757242681231,16.3012735,203.4,203.39,4.48917621]
[1757242682229,8.2912735,203.4,203.39,12.61917621]
[1757242684634,8.2912735,203.4,203.39,8.13]
[1757242684832,8.2912735,203.4,203.39,12.61924705]
[1757242686434,8.2912735,203.41,203.39,12.61924705]
[1757242686734,16.3012735,203.41,203.4,4.48924705]
[1757242687736,8.01,203.41,203.4,4.48924705]
[1757242688327,8.01,203.41,203.39,8.13]
[1757242688627,8.29262471,203.4,203.39,8.13]
[1757242689938,8.29262471,203.4,203.35,8.13]
[1757242690135,5.528569,203.38,203.37,8.13]
[1757242690334,5.528569,203.38,203.37,12.62695968]
[1757242691741,8.01,203.39,203.37,12.62695968]
[1757242691941,8.01,203.39,203.38,4.49695968]
[1757242693743,8.01,203.39,203.38,12.62695968]
[1757242695144,8.29262471,203.4,203.38,12.62695968]
[1757242695341,8.29262471,203.4,203.38,8.13]
[1757242695543,16.30262471,203.4,203.38,8.13]
[1757242697243,16.30262471,203.4,203.35,8.13]
[1757242697541,5.52933857,203.37,203.36,12.62787633]
[1757242697842,8.29262471,203.39,203.36,4.49787633]
[1757242698044,8.29262471,203.39,203.38,8.13]
[1757242698241,8.29262471,203.4,203.38,12.62787633]
[1757242698447,8.29262471,203.4,203.39,12.62787633]
[1757242705545,16.00262471,203.4,203.39,4.49787633]
[1757242707745,7.71,203.4,203.39,4.49787633]
[1757242710444,7.71,203.4,203.39,4.55451082]
[1757242712951,8.29262471,203.41,203.39,12.06451082]
[1757242713150,16.00262471,203.41,203.4,4.55451082]
[1757242713345,16.00262471,203.41,203.4,12.06451082]
[1757242713547,7.71,203.41,203.4,12.06451082]
[1757242713850,7.71,203.41,203.4,4.55451082]
[1757242714152,7.71,203.41,203.4,4.55428742]
[1757242723662,8.29262471,203.42,203.4,12.06428742]
[1757242723960,8.29262471,203.42,203.41,4.55428742]
[1757242724161,16.00262471,203.42,203.41,4.55428742]
[1757242728763,16.00262471,203.42,203.4,7.51]
[1757242728963,16.00262471,203.42,203.41,4.55455283]
[1757242732581,8.29262471,203.42,203.41,12.51455283]
[1757242732766,16.49262471,203.43,203.41,12.51455283]
[1757242732955,8.2,203.43,203.42,4.55455283]
[1757242735670,16.49262471,203.43,203.42,4.55455283]
[1757242735972,8.2,203.43,203.42,4.55455283]
[1757242737772,16.49262471,203.43,203.42,4.55455283]
[1757242743077,16.49262471,203.43,203.42,12.51455283]
[1757242743572,16.49262471,203.43,203.42,4.55455283]
[1757242747785,8.2,203.43,203.42,4.55455283]
[1757242754191,13.72429484,203.43,203.42,4.55455283]
[1757242755386,13.72414386,203.43,203.42,4.55455283]
[1757242757088,13.72414386,203.43,203.42,4.68630597]
[1757242757483,8.2,203.43,203.42,4.68630597]
[1757242770091,8.29262471,203.45,203.42,12.63630597]
[1757242770294,7.7,203.44,203.43,4.68630597]
[1757242772293,15.99262471,203.45,203.43,12.63630597]
[1757242772493,15.99262471,203.45,203.44,4.68630597]
[1757242777790,7.7,203.45,203.44,4.68630597]
[1757242784502,15.99394895,203.45,203.44,4.68630597]
[1757242785201,8.29394895,203.45,203.44,12.63630597]
[1757242785603,8.29394895,203.47,203.45,7.95]
[1757242785905,15.99394895,203.47,203.46,4.68630597]
[1757242786495,7.7,203.47,203.46,4.68630597]
[1757242788304,15.98904084,203.47,203.46,4.68630597]
[1757242791607,15.98904084,203.47,203.46,4.67916682]
[1757242801315,8.28904084,203.47,203.46,12.13916682]
[1757242801517,15.68904084,203.47,203.46,4.67916682]
[1757242803120,8.28904084,203.48,203.46,12.63916682]
[1757242803320,8.28904084,203.49,203.48,7.46]
[1757242803520,8.28904084,203.49,203.48,12.13916682]
[1757242804117,8.28904084,203.5,203.49,7.46]
[1757242804313,15.68904084,203.5,203.49,4.67916682]
[1757242807723,15.68904084,203.5,203.49,12.13916682]
[1757242808319,7.4,203.5,203.49,12.1440468]
[1757242808623,7.4,203.5,203.49,4.6840468]
[1757242808823,8.28904084,203.51,203.49,4.6840468]
[1757242809024,8.28904084,203.51,203.44,7.46]
[1757242809225,5.51877552,203.47,203.46,7.46]
[1757242809424,5.51877552,203.47,203.46,12.1410928]
[1757242809726,5.51877552,203.48,203.46,12.1410928]
[1757242809926,5.51877552,203.48,203.47,12.1410928]
[1757242810326,12.91877552,203.48,203.47,4.6810928]
[1757242810527,7.4,203.48,203.47,4.6810928]
[1757242810928,7.4,203.48,203.47,4.6811631]
[1757242816532,7.4,203.48,203.47,12.1411631]
[1757242819232,8.28904084,203.51,203.47,4.6811631]
[1757242819437,5.51883856,203.5,203.49,7.86]
[1757242819634,5.51883856,203.5,203.49,12.5411631]
[1757242823233,13.08883856,203.52,203.49,12.5411631]
[1757242823439,13.08883856,203.52,203.5,12.5411631]
[1757242823639,13.08883856,203.52,203.51,4.6811631]
[1757242824338,7.57,203.52,203.51,4.6811631]
[1757242827836,13.08883856,203.52,203.51,4.6811631]
[1757242828231,13.08883856,203.52,203.48,7.86]
[1757242828436,13.08883856,203.52,203.49,4.66416748]
[1757242828738,13.08883856,203.52,203.51,7.86]
[1757242829043,13.08883856,203.52,203.51,4.66416748]
[1757242829232,13.08883856,203.52,203.46,7.86]
[1757242829437,13.08883856,203.52,203.47,4.66396655]
[1757242829636,13.08883856,203.52,203.48,4.66396655]
[1757242829941,13.08883856,203.52,203.45,161.46446431]
[1757242829942,13.08883856,203.52,203.5,7.86]
[1757242830144,5.51883856,203.52,203.46,7.86]
[1757242830336,5.51883856,203.52,203.47,4.66349453]
[1757242830541,5.51883856,203.52,203.48,4.66349453]
[1757242830741,5.51883856,203.52,203.5,7.86]
[1757242832138,5.51883856,203.52,203.45,161.46446431]
[1757242832343,5.51883856,203.52,203.47,7.86]
[1757242832543,5.51883856,203.52,203.48,4.66266596]
[1757242832744,5.51883856,203.52,203.5,7.86]
[1757242835645,13.08883856,203.52,203.5,7.86]
[1757242837246,5.51883856,203.53,203.51,4.63920893]
[1757242837444,5.51883856,203.54,203.53,7.86]
[1757242837745,13.08883856,203.54,203.46,7.86]
[1757242837949,7.57,203.54,203.49,110.92]
[1757242838147,7.57,203.54,203.51,7.86]
[1757242838349,7.57,203.54,203.52,12.4976129]
[1757242838552,7.57,203.54,203.53,4.6376129]
[1757242842156,13.08883856,203.56,203.53,12.4976129]
[1757242842352,13.08883856,203.56,203.53,7.86]
[1757242843567,5.51883856,203.56,203.5,113.78]
[1757242843763,13.08883856,203.55,203.51,4.63068908]
[1757242843964,13.08883856,203.55,203.52,4.63068908]
[1757242844164,13.08883856,203.55,203.48,7.86]
[1757242844364,13.08883856,203.55,203.49,4.63154479]
[1757242844560,5.51883856,203.55,203.5,4.63154479]
[1757242844769,7.57,203.54,203.51,4.63154479]
[1757242845063,5.51883856,203.55,203.52,4.63154479]
[1757242845363,7.57,203.54,203.48,7.86]
[1757242845567,7.57,203.54,203.49,4.63184925]
[1757242845765,5.51883856,203.55,203.5,12.49184925]
[1757242845966,5.51883856,203.55,203.51,4.63184925]
[1757242846168,7.57,203.54,203.52,4.63184925]
[1757242846364,7.57,203.54,203.5,7.86]
[1757242846558,7.57,203.54,203.51,4.63222036]
[1757242846763,5.51883856,203.55,203.52,4.63222036]
[1757242846962,7.57,203.54,203.47,7.86]
[1757242847163,7.57,203.54,203.49,7.86]
[1757242847463,5.51883856,203.55,203.5,12.49222036]
[1757242847659,7.57,203.54,203.51,4.63222036]
[1757242847861,13.08883856,203.54,203.52,4.63222036]
[1757242848060,7.57,203.54,203.52,7.86]
[1757242848259,7.57,203.54,203.53,4.63273844]
[1757242850466,7.57,203.54,203.5,7.86]
[1757242850673,7.57,203.54,203.51,12.84152619]
[1757242850674,8.11,203.54,203.51,12.84152619]
[1757242850862,5.51883856,203.55,203.52,4.63152619]
[1757242851067,8.11,203.54,203.51,8.21]
[1757242851267,8.11,203.54,203.52,4.63154908]
[1757242851471,8.11,203.54,203.51,8.21]
[1757242851673,8.11,203.54,203.52,4.63163449]
[1757242851872,8.11,203.54,203.51,8.21]
[1757242852068,8.11,203.54,203.52,4.63163449]
[1757242852269,8.11,203.54,203.51,8.21]
[1757242852474,8.11,203.54,203.52,4.63177291]
[1757242852662,8.11,203.54,203.51,8.21]
[1757242852868,8.11,203.54,203.52,4.63177323]
[1757242853067,8.11,203.54,203.51,8.21]
[1757242853267,8.11,203.53,203.52,4.63195307]
[1757242859775,5.51883856,203.54,203.52,12.84195307]
[1757242860076,5.51883856,203.54,203.53,4.63195307]
[1757242860374,13.62883856,203.54,203.53,4.63195307]
[1757242861377,8.11,203.54,203.53,4.63195307]
[1757242861576,13.62542988,203.54,203.53,4.63195307]
[1757242862175,8.11,203.54,203.53,4.63195307]
[1757242862878,5.5165717,203.55,203.54,8.21]
[1757242863080,5.5165717,203.56,203.54,4.63195307]
[1757242863272,5.5165717,203.56,203.55,12.84195307]
[1757242863679,5.5165717,203.57,203.56,8.21]
[1757242863977,5.5165717,203.57,203.56,12.84195307]
[1757242864575,5.5165717,203.58,203.56,12.84195307]
[1757242864777,5.5165717,203.58,203.57,12.84195307]
[1757242865876,13.6265717,203.58,203.57,4.63195307]
[1757242867878,8.11,203.58,203.57,4.63195307]
[1757242868274,8.11,203.58,203.54,8.21]
[1757242868474,5.51466978,203.56,203.55,4.63173906]
[1757242869283,5.51466978,203.56,203.55,12.84173906]
[1757242874280,5.51466978,203.57,203.55,12.84173906]
[1757242874586,5.51466978,203.57,203.55,8.21]
[1757242875082,5.51466978,203.57,203.52,8.21]
[1757242875283,5.51466978,203.57,203.53,4.54306517]
[1757242875485,5.51466978,203.57,203.55,8.21]
[1757242875687,5.51466978,203.57,203.52,8.21]
[1757242875881,5.51466978,203.57,203.54,8.21]
[1757242876185,5.51466978,203.57,203.53,4.54287505]
[1757242876186,5.51466978,203.57,203.56,8.21]
[1757242877391,13.62466978,203.57,203.56,8.21]
[1757242877590,13.62466978,203.57,203.46,8.21]
[1757242877891,13.62466978,203.57,203.48,8.21]
[1757242878084,13.62466978,203.57,203.5,8.21]
[1757242878390,13.62466978,203.57,203.52,8.21]
[1757242878585,13.62466978,203.57,203.54,8.21]
[1757242878891,13.62466978,203.57,203.55,4.54341026]
[1757242879089,13.62466978,203.57,203.56,4.54341026]
[1757242890398,7.6,203.58,203.46,7.84]
[1757242890598,5.51439006,203.56,203.5,7.84]
[1757242893206,13.11439006,203.56,203.5,7.84]
[1757242899810,5.51439006,203.53,203.47,85.08]
[1757242900012,7.6,203.52,203.47,85.08]
[1757242900715,7.6,203.52,203.48,7.84]
[1757242901212,7.6,203.52,203.47,85.08]
[1757242901410,7.6,203.52,203.48,7.84]
[1757242901714,7.6,203.52,203.47,85.08]
[1757242901916,7.6,203.52,203.48,7.84]
[1757242902118,5.51439006,203.53,203.47,85.08]
[1757242902314,5.51439006,203.53,203.48,7.84]
[1757242902315,13.11439006,203.53,203.48,7.84]
[1757242902516,7.6,203.52,203.49,12.32906324]
[1757242902812,7.6,203.52,203.5,4.48906324]
[1757242903014,7.6,203.52,203.51,4.48906324]
[1757242904315,7.6,203.52,203.45,76.64446431]
[1757242904617,7.6,203.5,203.46,12.3297319]
[1757242904812,5.51791685,203.51,203.47,12.3297319]
[1757242905017,5.51791685,203.51,203.48,4.4897319]
[1757242905206,7.6,203.5,203.49,4.4897319]
[1757242906221,5.51791685,203.51,203.5,7.84]
[1757242906518,13.11791685,203.51,203.5,4.4897319]
[1757242907114,5.51791685,203.51,203.5,12.3297319]
[1757242908222,5.51791685,203.52,203.5,7.84]
[1757242908718,13.11791685,203.52,203.5,7.84]
[1757242909313,7.6,203.52,203.5,7.84]
[1757242911011,5.51791685,203.53,203.51,7.8]
[1757242911210,5.51791685,203.53,203.47,7.8]
[1757242911413,5.51791685,203.54,203.49,7.8]
[1757242911620,5.51791685,203.54,203.5,4.48462221]
[1757242911821,5.51791685,203.54,203.52,7.8]
[1757242912118,5.51791685,203.54,203.47,7.8]
[1757242912322,5.51791685,203.54,203.49,7.8]
[1757242912615,5.51791685,203.54,203.48,4.48355275]
[1757242912616,5.51791685,203.54,203.5,4.48355275]
[1757242912820,5.51791685,203.54,203.52,7.8]
[1757242913020,13.33791685,203.56,203.53,12.28262623]
[1757242913323,13.33791685,203.56,203.47,7.8]
[1757242913522,5.51791685,203.56,203.48,4.48279111]
[1757242913722,5.51791685,203.56,203.5,7.8]
[1757242913921,5.51791685,203.56,203.51,4.48279111]
[1757242914122,13.33791685,203.56,203.53,7.8]
[1757242914319,13.33791685,203.56,203.54,12.28279111]
[1757242914518,13.33791685,203.56,203.54,7.8]
[1757242917826,5.51791685,203.55,203.54,7.8]
[1757242918122,5.51791685,203.55,203.54,12.28302708]
[1757242918325,5.51791685,203.55,203.54,7.8]
[1757242922128,5.51791685,203.55,203.5,7.8]
[1757242922324,5.51791685,203.55,203.51,4.48376437]
[1757242922525,5.51791685,203.55,203.52,4.48376437]
[1757242922725,5.51791685,203.55,203.54,7.8]
[1757242928435,5.51791685,203.55,203.54,12.28853601]
[1757242929134,5.51791685,203.56,203.55,7.8]
[1757242933238,5.51791685,203.56,203.55,12.28847958]
[1757242935939,5.51791685,203.56,203.55,12.28834929]
[1757242938637,13.33791685,203.56,203.55,12.28834929]
[1757242938838,13.33791685,203.56,203.55,4.48834929]
[1757242944245,5.51791685,203.56,203.55,11.96834929]
[1757242952249,16.01904084,203.58,203.55,11.96834929]
[1757242952448,16.01904084,203.58,203.55,7.48]
[1757242953047,16.01904084,203.58,203.51,7.48]
[1757242953254,5.5190368,203.55,203.52,4.49164207]
[1757242953553,5.5190368,203.55,203.54,7.48]
[1757242953750,5.5190368,203.55,203.54,11.97164207]
[1757242954154,5.5190368,203.55,203.54,11.97284758]
[1757242954656,5.5190368,203.55,203.54,11.97385942]
[1757242956264,8.28904084,203.57,203.55,7.48]
[1757242956464,8.28904084,203.57,203.56,4.49385942]
[1757242957262,16.01904084,203.57,203.56,4.49385942]
[1757242957958,7.73,203.57,203.56,4.49385942]
[1757242961164,16.0202612,203.57,203.56,4.49385942]
[1757242961558,7.73,203.57,203.56,4.49385942]
[1757242962766,7.73,203.57,203.56,11.97385942]
[1757242963859,7.73,203.57,203.56,4.49385942]
[1757242967769,7.73,203.57,203.56,11.97385942]
[1757242967969,13.25196043,203.57,203.56,11.97385942]
[1757242970966,13.25196043,203.57,203.56,4.49385942]
[1757242973270,5.52196043,203.57,203.56,4.49385942]
[1757242973667,13.54196043,203.57,203.56,4.49385942]
[1757242977271,8.02,203.57,203.56,4.49385942]
[1757242979778,8.02,203.57,203.56,4.49111186]
[1757242981274,8.02,203.57,203.56,1.41921556]
[1757242983676,16.3102612,203.57,203.51,7.45]
[1757242983882,13.54158243,203.54,203.51,7.45]
[1757242984178,13.54158243,203.54,203.5,194.95428891]
[1757242984373,13.54158243,203.54,203.51,7.45]
[1757242984570,13.54158243,203.54,203.5,194.95428891]
[1757242984774,13.54158243,203.54,203.51,7.45]
[1757242985174,5.52158243,203.54,203.51,7.45]
[1757242985370,13.54158243,203.52,203.5,83.50428891]
[1757242985571,13.54158243,203.52,203.5,76.05428891]
[1757242985779,13.54158243,203.52,203.51,7.45]
[1757242986276,8.02,203.52,203.51,7.45]
[1757242986582,13.54158243,203.52,203.51,7.45]
[1757242989078,8.02,203.52,203.51,7.45]
[1757242993385,8.02,203.52,203.51,11.87302371]
[1757242993587,5.52158243,203.53,203.52,7.45]
[1757242993787,5.52158243,203.53,203.52,11.87302371]
[1757242994087,5.52158243,203.53,203.52,7.45]
[1757242995586,13.54158243,203.54,203.52,7.45]
[1757242995786,8.02,203.53,203.52,7.45]
[1757242997987,13.54158243,203.53,203.52,7.45]
[1757242998487,8.02,203.52,203.5,76.05428891]
[1757242998684,8.02,203.52,203.51,4.42126823]
[1757242999188,8.02,203.53,203.51,11.87126823]
[1757242999487,8.02,203.53,203.51,7.45]
[1757243000390,13.54158243,203.54,203.51,7.88]
[1757243000589,13.54158243,203.54,203.52,7.88]
[1757243000793,5.52158243,203.54,203.51,7.88]
[1757243000987,5.52158243,203.55,203.53,7.88]
[1757243001486,5.52158243,203.55,203.52,118.82]
[1757243001888,5.52158243,203.56,203.53,4.41917733]
[1757243002087,5.52158243,203.56,203.52,118.82]
[1757243002390,5.52158243,203.56,203.54,7.88]
[1757243002586,5.52158243,203.56,203.53,7.88]
[1757243003092,5.52158243,203.56,203.52,118.82]
[1757243003295,5.52158243,203.56,203.53,4.41894063]
[1757243003493,5.52158243,203.56,203.52,118.82]
[1757243003794,5.52158243,203.56,203.54,7.88]
[1757243003992,5.52158243,203.56,203.52,118.82]
[1757243004295,5.52158243,203.56,203.53,4.45495385]
[1757243004489,5.52158243,203.56,203.55,7.88]
[1757243007000,5.52158243,203.57,203.55,12.33426933]
[1757243007200,16.3102612,203.6,203.55,7.88]
[1757243007201,5.52158243,203.58,203.55,7.88]
[1757243007390,13.54158243,203.58,203.55,7.88]
[1757243007900,13.54158243,203.58,203.52,118.82]
[1757243008094,13.54158243,203.58,203.54,7.88]
[1757243008292,13.54158243,203.58,203.56,7.88]
[1757243012799,5.52158243,203.59,203.55,7.88]
[1757243013003,5.52158243,203.59,203.57,7.88]
[1757243013307,8.02,203.58,203.56,118.74]
[1757243013507,8.02,203.58,203.57,4.45361262]
[1757243016007,8.02,203.58,203.57,12.33361262]
[1757243016301,5.52158243,203.59,203.58,7.88]
[1757243018106,13.54158243,203.59,203.58,7.88]
[1757243018306,13.54158243,203.59,203.57,7.88]
[1757243020006,13.54158243,203.59,203.57,126.6]
[1757243021010,5.52158243,203.59,203.58,7.88]
[1757243028821,5.52158243,203.6,203.57,118.72]
[1757243029625,13.08158243,203.61,203.59,7.76]
[1757243029815,13.08158243,203.61,203.6,118.68]
[1757243030125,5.52158243,203.61,203.6,126.44]
[1757243032725,5.52158243,203.62,203.61,7.76]
[1757243036923,5.52158243,203.65,203.61,126.42]
[1757243037129,7.56,203.63,203.61,7.76]
[1757243037330,7.56,203.63,203.62,118.88]
[1757243037729,5.52158243,203.64,203.5,76.05428891]
[1757243037931,13.08158243,203.63,203.52,7.76]
[1757243038227,13.08158243,203.63,203.54,7.76]
[1757243038427,13.08158243,203.63,203.56,7.76]
[1757243038628,13.08158243,203.63,203.57,4.45532156]
[1757243038826,5.52158243,203.63,203.58,46.97532156]
[1757243039132,5.52158243,203.63,203.59,4.45532156]
[1757243039326,7.56,203.61,203.58,42.52]
[1757243039522,7.56,203.61,203.59,4.45625823]
[1757243039726,7.56,203.61,203.58,42.52]
[1757243039927,5.52158243,203.62,203.59,4.45625823]
[1757243040127,7.56,203.61,203.58,42.52]
[1757243040333,5.52158243,203.62,203.59,4.45677585]
[1757243040626,5.52158243,203.62,203.58,42.52]
[1757243040833,7.56,203.61,203.59,4.45677585]
[1757243041034,7.56,203.61,203.58,42.52]
[1757243041235,5.52158243,203.62,203.59,4.45737147]
[1757243041430,7.56,203.61,203.58,42.52]
[1757243041628,5.52158243,203.62,203.59,4.45723597]
[1757243041835,7.56,203.61,203.58,50.28]
[1757243042134,5.52158243,203.62,203.59,4.45826672]
[1757243042334,7.56,203.6,203.58,7.76]
[1757243042535,7.56,203.6,203.59,4.45824]
[1757243044238,13.08158243,203.61,203.59,12.21824]
[1757243044533,13.08158243,203.61,203.59,7.76]
[1757243046134,5.52158243,203.61,203.59,7.76]
[1757243046336,7.56,203.6,203.59,7.76]
[1757243046536,7.56,203.6,203.59,12.22290201]
[1757243047739,7.56,203.6,203.59,4.46290201]
[1757243047935,13.08158243,203.6,203.59,4.46290201]
[1757243048135,5.52158243,203.6,203.59,12.22290201]
[1757243048335,8.2902612,203.62,203.59,7.76]
[1757243048535,15.8502612,203.62,203.59,7.76]
[1757243048734,7.56,203.61,203.59,7.76]
[1757243049238,15.8502612,203.62,203.56,7.76]
[1757243049438,5.51376943,203.59,203.58,7.76]
[1757243049635,5.51376943,203.59,203.58,12.22432006]
[1757243057842,5.51376943,203.59,203.58,7.76]
[1757243058045,5.51376943,203.6,203.58,12.22659941]
[1757243058243,5.51376943,203.6,203.59,4.46659941]
[1757243059149,5.51376943,203.6,203.59,12.22659941]
[1757243061550,5.51376943,203.6,203.59,12.22734648]
[1757243062551,13.15376943,203.6,203.59,4.46734648]
[1757243063854,5.51376943,203.6,203.59,4.46734648]
[1757243064053,5.51376943,203.6,203.59,12.10734648]
[1757243065348,5.51376943,203.6,203.59,4.46734648]
[1757243065558,7.64,203.6,203.59,1.39603832]
[1757243066547,7.64,203.6,203.54,7.64]
[1757243066749,5.52005074,203.58,203.53,7.64]
[1757243067153,13.16005074,203.58,203.53,7.64]
[1757243067354,13.16005074,203.58,203.52,10.12]
[1757243067855,13.16005074,203.58,203.53,7.64]
[1757243069457,13.16005074,203.58,203.52,10.12]
[1757243069648,13.16005074,203.58,203.53,7.64]
[1757243069956,13.16005074,203.58,203.52,10.12]
[1757243070156,13.16005074,203.58,203.53,7.64]
[1757243073258,13.16005074,203.58,203.52,10.12]
[1757243073559,13.16005074,203.58,203.53,7.64]
[1757243075448,13.16005074,203.58,203.52,10.12]
[1757243075654,13.16005074,203.58,203.53,7.64]
[1757243076547,13.16005074,203.58,203.54,7.64]
[1757243076753,13.16005074,203.58,203.53,7.64]
[1757243076953,13.16005074,203.58,203.52,10.12]
[1757243077759,13.16005074,203.58,203.53,4.40670407]
[1757243077959,13.16005074,203.58,203.55,7.64]
[1757243078159,13.16005074,203.58,203.56,4.40670407]
[1757243078361,13.16005074,203.58,203.57,4.40670407]
[1757243080065,13.16005074,203.58,203.57,4.40648192]
[1757243085168,13.16005074,203.58,203.57,12.04648192]
[1757243085566,13.16005074,203.58,203.57,4.40648192]
[1757243087471,13.16166118,203.58,203.57,4.40648192]
[1757243094483,13.16166118,203.58,203.54,7.64]
[1757243094781,13.16166118,203.58,203.55,11.88871268]
[1757243094981,13.16166118,203.58,203.56,4.40871268]
[1757243095183,13.16166118,203.58,203.57,4.40871268]
[1757243098178,7.64,203.58,203.57,4.40871268]
[1757243103282,10.98017628,203.63,203.52,78.93006374]
[1757243103488,7.77,203.54,203.53,4.41128123]
[1757243104186,5.52342939,203.55,203.53,11.89128123]
[1757243104389,13.29342939,203.55,203.54,4.41128123]
[1757243105786,13.29342939,203.55,203.54,11.89128123]
[1757243106886,7.77,203.55,203.54,11.89128123]
[1757243107989,5.52342939,203.56,203.55,7.48]
[1757243108192,5.52342939,203.58,203.56,7.48]
[1757243108391,5.52342939,203.58,203.57,11.89128123]
[1757243109791,5.52342939,203.59,203.57,11.89128123]
[1757243109987,5.52342939,203.59,203.58,4.41128123]
[1757243112192,13.29342939,203.59,203.58,4.41128123]
[1757243112992,5.52342939,203.59,203.58,11.89128123]
[1757243113187,5.52342939,203.6,203.58,11.89128123]
[1757243113383,13.29342939,203.6,203.59,4.41128123]
[1757243118095,5.52342939,203.61,203.59,11.89128123]
[1757243118296,5.52342939,203.61,203.6,4.41128123]
[1757243118698,5.52342939,203.61,203.6,11.89128123]
[1757243119101,7.77,203.61,203.6,4.41128123]
[1757243127508,7.77,203.61,203.54,8.19]
[1757243127813,8.01,203.58,203.56,8.19]
[1757243128110,8.01,203.58,203.57,4.41960713]